bitfinex/quotes_SOLUSD_20260314
["timestamp","ask_amount","ask_price","bid_price","bid_amount"]
[1773473668462,0.99727121,87.378,87.36,12.39452116]
[1773473668665,0.99727121,87.378,87.361,0.94611151]
[1773473671964,0.99727121,87.378,87.357,0.94167856]
[1773473678276,0.99727121,87.378,87.359,0.93323755]
[1773473681279,0.99727121,87.378,87.338,61.6]
[1773473681280,0.8960766,87.369,87.321,0.92923777]
[1773473681467,0.8960766,87.359,87.31,3.91532483]
[1773473681672,0.8960766,87.359,87.324,0.92793284]
[1773473681873,0.8960766,87.359,87.325,11.45135762]
[1773473682263,0.8960766,87.359,87.329,11.45092392]
[1773473682469,0.8960766,87.359,87.332,0.92793284]
[1773473682670,0.8960766,87.372,87.341,0.92664202]
[1773473682880,0.8960766,87.372,87.351,0.92664202]
[1773473683061,0.8960766,87.378,87.351,0.92664202]
[1773473683372,0.8960766,87.378,87.353,0.92664202]
[1773473684669,0.8960766,87.378,87.355,0.9253695]
[1773473685078,11.44465934,87.377,87.355,0.9253695]
[1773473685283,0.8960766,87.376,87.355,0.9253695]
[1773473687390,0.87518423,87.374,87.349,0.92040356]
[1773473687683,0.87518423,87.374,87.351,0.91918656]
[1773473690290,0.87518423,87.374,87.353,0.91680879]
[1773473696082,0.87518423,87.374,87.355,0.90893003]
[1773473700587,0.87518423,87.374,87.356,12.35107713]
[1773473700784,0.87518423,87.374,87.356,11.44741059]
[1773473701178,0.89075113,87.373,87.354,0.90366654]
[1773473701899,0.89075113,87.373,87.353,11.44780373]
[1773473702401,0.89075113,87.373,87.342,0.90265825]
[1773473702595,0.89075113,87.369,87.338,0.90166485]
[1773473704808,1.68279999,87.378,87.339,11.44963876]
[1773473704809,0.89075113,87.367,87.339,11.44963876]
[1773473705101,0.89075113,87.367,87.34,0.89970282]
[1773473706500,11.44610031,87.366,87.34,0.89970282]
[1773473706694,0.89075113,87.365,87.34,0.89970282]
[1773473706895,11.44610031,87.366,87.33,0.2]
[1773473706896,0.89075113,87.359,87.33,0.2]
[1773473707805,0.89075113,87.359,87.33,1.09682729]
[1773473708003,0.89075113,87.357,87.33,1.09682729]
[1773473708600,11.44714851,87.358,87.33,1.09682729]
[1773473708601,7.14466559,87.365,87.341,0.89588856]
[1773473712009,7.14466559,87.365,87.343,0.89310692]
[1773473713712,0.89075113,87.364,87.345,0.89130704]
[1773473715511,0.89075113,87.363,87.345,0.89130704]
[1773473717416,0.89075113,87.363,87.346,11.44872117]
[1773473717710,0.89075113,87.363,87.347,0.88803043]
[1773473720204,0.89075113,87.363,87.348,11.44845903]
[1773473720409,0.89075113,87.363,87.349,0.88487111]
[1773473720619,7.14466559,87.365,87.349,0.88487111]
[1773473721610,7.14466559,87.365,87.35,11.4481969]
[1773473721797,7.14466559,87.365,87.351,0.86236014]
[1773473722313,8.01420123,87.365,87.351,0.86236014]
[1773473727725,0.86953564,87.364,87.345,11.44873518]
[1773473728202,0.86953564,87.364,87.346,0.86236014]
[1773473728906,0.86953564,87.364,87.347,11.4485901]
[1773473730022,0.86953564,87.362,87.346,0.86236014]
[1773473730220,0.86953564,87.362,87.346,12.31099611]
[1773473730516,0.86953564,87.362,87.333,61.6]
[1773473730723,0.86953564,87.362,87.333,62.46236014]
[1773473731424,11.44675541,87.361,87.333,73.91268762]
[1773473731735,0.86953564,87.36,87.333,73.91268762]
[1773473732438,0.86953564,87.36,87.333,12.31268762]
[1773473733437,0.86953564,87.358,87.333,11.45032748]
[1773473734846,0.86953564,87.356,87.333,11.45032748]
[1773473735342,0.86953564,87.356,87.334,0.86236014]
[1773473736438,0.86953564,87.354,87.334,0.86236014]
[1773473738241,0.86953564,87.354,87.33,1.06236014]
[1773473738745,0.86953564,87.354,87.331,0.86236014]
[1773473741640,0.86953564,87.354,87.331,11.45068761]
[1773473741936,0.86953564,87.354,87.332,0.86236014]
[1773473743036,28.61511502,87.367,87.33,0.2]
[1773473743037,3.71613412,87.35,87.33,0.2]
[1773473743234,0.86953564,87.349,87.33,0.2]
[1773473749650,0.917044,87.355,87.331,11.45068761]
[1773473749859,0.917044,87.355,87.332,0.85713365]
[1773473752461,0.87305546,87.353,87.332,0.85713365]
[1773473752759,0.87305546,87.353,87.334,0.85431419]
[1773473753858,0.87305546,87.353,87.33,0.2]
[1773473754055,0.87305546,87.351,87.331,0.85364335]
[1773473755262,0.87305546,87.351,87.332,0.85297868]
[1773473760869,0.87305546,87.351,87.333,12.29952549]
[1773473763772,0.87305546,87.351,87.333,11.45042538]
[1773473763961,0.87305546,87.349,87.33,0.2]
[1773473764556,0.87305546,87.349,87.322,11.45178394]
[1773473765575,0.87305546,87.349,87.32,11.65212034]
[1773473766477,0.87305546,87.347,87.32,11.65212034]
[1773473767978,0.87305546,87.345,87.32,11.65212034]
[1773473768274,0.87305546,87.345,87.31,3.91613412]
[1773473768275,0.87305546,87.339,87.312,12.29801981]
[1773473768860,0.87305546,87.339,87.313,0.84431647]
[1773473770073,0.87305546,87.337,87.313,0.84431647]
[1773473772069,0.72100001,87.362,87.31,0.2]
[1773473772070,0.87305546,87.329,87.31,0.2]
[1773473772367,0.87305546,87.319,87.3,0.2]
[1773473773879,0.87305546,87.317,87.3,0.2]
[1773473775079,0.87305546,87.315,87.3,0.2]
[1773473777265,11.45291705,87.314,87.3,0.2]
[1773473777565,11.45291705,87.314,87.29,0.2]
[1773473777566,3.71613412,87.31,87.29,0.2]
[1773473777770,0.87305546,87.309,87.29,0.2]
[1773473781679,0.8232653,87.307,87.29,0.2]
[1773473783672,11.4539665,87.306,87.29,0.2]
[1773473783873,0.8232653,87.305,87.29,0.2]
[1773473784080,0.8232653,87.299,87.28,0.2]
[1773473785168,0.8232653,87.297,87.28,0.2]
[1773473785685,0.8232653,87.297,87.27,0.2]
[1773473786299,0.8232653,87.295,87.27,0.2]
[1773473788286,11.45554104,87.294,87.27,0.2]
[1773473788479,0.8232653,87.293,87.27,0.2]
[1773473789391,7.0732815,87.315,87.281,0.88724395]
[1773473789600,7.0732815,87.315,87.291,0.88724395]
[1773473790499,11.45304822,87.313,87.291,0.88724395]
[1773473791290,11.45331057,87.311,87.291,0.88724395]
[1773473791603,0.8232653,87.31,87.291,0.88724395]
[1773473792387,4.54561775,87.31,87.271,11.45856011]
[1773473792575,11.45331057,87.311,87.271,11.45856011]
[1773473792576,0.8232653,87.299,87.271,11.45856011]
[1773473792890,0.8232653,87.289,87.27,0.2]
[1773473793483,0.8232653,87.287,87.27,0.2]
[1773473793880,0.8232653,87.287,87.257,11.46034735]
[1773473794279,0.8232653,87.279,87.253,11.46090509]
[1773473794800,0.8232653,87.279,87.25,1.08654346]
[1773473794801,0.8232653,87.269,87.25,0.2]
[1773473795387,11.45895402,87.268,87.25,0.2]
[1773473795596,0.8232653,87.267,87.25,0.2]
[1773473802383,0.8232653,87.265,87.25,0.2]
[1773473803385,11.45921664,87.266,87.251,0.86291507]
[1773473804284,12.28248194,87.266,87.251,0.86291507]
[1773473805184,0.8232653,87.265,87.25,1e-08]
[1773473805386,11.45921664,87.266,87.25,0.85797763]
[1773473808092,0.7941802,87.266,87.25,0.85797763]
[1773473811092,6.76101697,87.271,87.25,1e-08]
[1773473811288,6.76101697,87.271,87.252,0.80141684]
[1773473811895,0.81475527,87.27,87.252,0.80141684]
[1773473812919,0.81475527,87.274,87.252,0.80141684]
[1773473813912,7.3,87.28,87.254,0.80141684]
[1773473814114,19.29102707,87.284,87.254,0.80141684]
[1773473814413,0.81475527,87.283,87.254,0.80141684]
[1773473815112,7.01939525,87.284,87.256,0.80141684]
[1773473815298,0.81475527,87.283,87.256,0.80141684]
[1773473815494,0.81475527,87.282,87.256,0.80141684]
[1773473816704,0.81475527,87.28,87.256,0.80141684]
[1773473818326,0.81475527,87.279,87.25,1e-08]
[1773473818506,0.81475527,87.269,87.25,1e-08]
[1773473823026,0.81475527,87.267,87.25,1e-08]
[1773473824106,11.45895402,87.268,87.24,0.2]
[1773473824107,0.81475527,87.259,87.24,0.2]
[1773473825110,0.81475527,87.257,87.24,0.2]
[1773473825618,0.81475527,87.257,87.212,0.80141684]
[1773473825826,0.81475527,87.249,87.221,0.80141684]
[1773473827206,0.81475527,87.248,87.223,0.80141684]
[1773473828728,0.81475527,87.248,87.222,11.46499736]
[1773473828729,0.81475527,87.239,87.212,0.80141684]
[1773473828913,0.81475527,87.253,87.221,0.80141684]
[1773473829228,0.81475527,87.253,87.222,11.46499736]
[1773473829519,0.81475527,87.253,87.231,0.80141684]
[1773473833831,0.81475527,87.251,87.232,0.79448287]
[1773473836226,12.27410323,87.265,87.241,0.78856576]
[1773473836412,0.81475527,87.264,87.241,0.78856576]
[1773473838110,12.27436587,87.263,87.241,0.78856576]
[1773473838428,0.81475527,87.262,87.241,0.78856576]
[1773473839534,0.81475527,87.262,87.232,0.77997045]
[1773473839827,0.81475527,87.26,87.23,3.72235245]
[1773473840028,0.81475527,87.26,87.23,4.49952255]
[1773473840555,0.81475527,87.26,87.231,0.7771701]
[1773473841434,0.82552406,87.258,87.231,0.7771701]
[1773473841633,0.82552406,87.258,87.231,0.7622181]
[1773473842017,11.46013591,87.259,87.241,0.7622181]
[1773473842211,0.82552406,87.271,87.242,0.7622181]
[1773473842418,11.45869141,87.27,87.251,0.7622181]
[1773473843025,12.28421547,87.27,87.251,0.7622181]
[1773473843226,0.82552406,87.269,87.251,0.7622181]
[1773473843627,0.73500001,87.278,87.255,0.7622181]
[1773473844031,0.73500001,87.278,87.25,3.72235245]
[1773473844032,0.82552406,87.275,87.251,0.7622181]
[1773473845327,0.73500001,87.278,87.261,0.76102212]
[1773473845730,0.82552406,87.277,87.261,0.76102212]
[1773473847542,0.82552406,87.277,87.26,3.72346541]
[1773473848629,11.45790366,87.276,87.257,0.75588034]
[1773473848828,12.28342772,87.276,87.257,0.75588034]
[1773473849043,0.82552406,87.275,87.257,0.75588034]
[1773473852634,0.82552406,87.275,87.26,3.72346541]
[1773473852835,0.82552406,87.275,87.258,0.74352119]
[1773473853140,0.82552406,87.275,87.253,0.7411309]
[1773473854356,0.82552406,87.273,87.253,0.7411309]
[1773473854743,0.82552406,87.289,87.255,0.73644458]
[1773473854946,0.82552406,87.289,87.26,3.72346541]
[1773473855337,0.82552406,87.289,87.255,0.73644458]
[1773473856458,0.82552406,87.288,87.255,0.73644458]
[1773473856646,0.82552406,87.286,87.255,0.73644458]
[1773473857160,0.82552406,87.286,87.261,0.73187323]
[1773473858364,0.82552406,87.286,87.256,12.19014849]
[1773473858861,0.82552406,87.284,87.256,12.19014849]
[1773473860754,0.82552406,87.282,87.257,0.72302356]
[1773473861361,0.82552406,87.282,87.253,0.72302356]
[1773473864048,0.82552406,87.28,87.252,11.46104018]
[1773473864964,0.82552406,87.28,87.25,3.72346541]
[1773473865161,0.82552406,87.28,87.251,0.71458691]
[1773473866562,0.82552406,87.278,87.252,11.46105533]
[1773473867371,0.82552406,87.278,87.253,0.70850721]
[1773473868451,0.82552406,87.278,87.252,11.46105533]
[1773473869066,0.79125735,87.276,87.252,12.16563139]
[1773473874671,0.79125735,87.276,87.253,0.69150283]
[1773473874870,0.79125735,87.276,87.254,11.46079262]
[1773473875055,0.79125735,87.276,87.254,12.15229545]
[1773473877873,0.72054517,87.274,87.24,4.40966313]
[1773473878056,0.72054517,87.274,87.241,0.68619772]
[1773473879264,0.72054517,87.274,87.25,3.72346541]
[1773473880279,0.72054517,87.272,87.251,0.68277433]
[1773473881475,0.72054517,87.27,87.251,12.14396102]
[1773473884187,0.72054517,87.268,87.246,0.67615277]
[1773473884472,0.72054517,87.268,87.241,11.46250042]
[1773473885273,0.72054517,87.268,87.237,11.4630169]
[1773473885672,0.72054517,87.259,87.23,3.72346541]
[1773473886471,0.72054517,87.257,87.231,11.46381446]
[1773473888075,0.72054517,87.257,87.24,3.72346541]
[1773473888274,0.72054517,87.257,87.24,15.85587407]
[1773473889378,0.72054517,87.257,87.24,15.18604232]
[1773473889682,0.72054517,87.257,87.24,11.46257691]
[1773473890281,0.72054517,87.257,87.241,0.66677538]
[1773473891682,0.72054517,87.257,87.24,3.72346541]
[1773473892480,0.72054517,87.255,87.23,3.72346541]
[1773473893101,0.72054517,87.255,87.231,0.66233321]
[1773473893280,0.72054517,87.255,87.24,4.38579862]
[1773473893784,0.72054517,87.266,87.241,0.66087775]
[1773473894167,0.72054517,87.266,87.228,40.12473059]
[1773473894168,0.72054517,87.266,87.25,4.38434316]
[1773473895386,0.72054517,87.266,87.251,11.46118669]
[1773473896388,0.72054517,87.266,87.25,4.38434316]
[1773473901299,0.72054517,87.266,87.25,3.72346541]
[1773473905807,0.69459833,87.272,87.252,0.62978779]
[1773473906101,0.69459833,87.272,87.26,3.72346541]
[1773473907511,0.69459833,87.272,87.26,3.22346541]
[1773473907801,0.69459833,87.272,87.26,3.72360652]
[1773473914310,0.69459833,87.272,87.255,12.0795421]
[1773473914311,0.69459833,87.272,87.255,11.46053302]
[1773473914512,0.69459833,87.272,87.254,0.6128467]
[1773473915394,0.69459833,87.272,87.255,11.46066128]
[1773473915796,0.69459833,87.272,87.26,3.72360652]
[1773473915992,0.69459833,87.292,87.261,0.60885249]
[1773473916199,0.69459833,87.304,87.281,0.60885249]
[1773473916388,0.69459833,87.304,87.29,3.72360652]
[1773473922416,0.69459833,87.304,87.29,3.22360652]
[1773473922916,0.69459833,87.302,87.29,3.22360652]
[1773473927019,0.71785706,87.306,87.29,3.81029455]
[1773473927320,0.71785706,87.306,87.291,0.58668803]
[1773473927902,0.71785706,87.316,87.3,3.72360652]
[1773473928103,0.71785706,87.316,87.3,4.30858366]
[1773473928303,0.71785706,87.316,87.3,3.72360652]
[1773473930121,11.45278589,87.315,87.295,0.58497714]
[1773473930313,0.71785706,87.314,87.295,0.58497714]
[1773473931424,0.70396571,87.312,87.291,12.03425247]
[1773473933725,0.70396571,87.31,87.29,3.72360652]
[1773473933904,0.70396571,87.31,87.28,3.72360652]
[1773473934327,0.70396571,87.31,87.28,4.29712684]
[1773473934622,0.70396571,87.31,87.28,3.72360652]
[1773473937924,0.70396571,87.308,87.281,11.45724728]
[1773473939513,0.70396571,87.306,87.281,11.45724728]
[1773473939721,0.70396571,87.306,87.282,0.56440964]
[1773473942129,0.70396571,87.306,87.29,3.72360652]
[1773473957637,0.70396571,87.306,87.275,28.64501638]
[1773473957638,7.3,87.315,87.301,0.54061468]
[1773473958024,8.00396571,87.315,87.301,0.54061468]
[1773473958438,0.70396571,87.314,87.301,0.54061468]
[1773473958624,7.3,87.315,87.301,0.54061468]
[1773473958821,7.3,87.315,87.303,0.53943615]
[1773473960341,0.70396571,87.325,87.305,0.5382664]
[1773473960550,0.70396571,87.325,87.31,3.72360652]
[1773473960845,0.70396571,87.325,87.31,4.26070736]
[1773473965651,0.70396571,87.325,87.31,0.53710084]
[1773473965827,0.70396571,87.325,87.31,4.26070736]
[1773473966031,0.70396571,87.325,87.31,3.72360652]
[1773473967847,0.70396571,87.325,87.31,4.25191314]
[1773473968243,0.65168153,87.343,87.321,0.52830662]
[1773473969544,0.65168153,87.343,87.322,11.45186779]
[1773473975675,0.65168153,87.343,87.322,11.97309379]
[1773473978242,0.65168153,87.343,87.325,0.51836624]
[1773473978444,7.95168153,87.348,87.331,0.51836624]
[1773473978639,7.95168153,87.348,87.33,3.7183923]
[1773473978640,0.1,87.35,87.34,4.23583187]
[1773473978858,0.1,87.35,87.341,0.51743957]
[1773473979462,0.1,87.35,87.34,3.7183923]
[1773473980158,0.1,87.35,87.338,11.4497049]
[1773473980361,0.75168153,87.35,87.338,11.4497049]
[1773473981058,0.75168153,87.35,87.335,0.5155986]
[1773473983669,0.75168153,87.35,87.336,11.45003206]
[1773473983965,0.75168153,87.35,87.336,11.96295233]
[1773473991076,0.75168153,87.35,87.3,11.0183923]
[1773473991077,0.68892966,87.348,87.311,0.50543335]
[1773473992473,0.68892966,87.348,87.32,3.7183923]
[1773473993178,0.64258916,87.346,87.321,11.45199894]
[1773473996058,0.64258916,87.346,87.322,0.50159703]
[1773473997166,0.64258916,87.346,87.321,11.45199894]
[1773473998372,0.64258916,87.346,87.321,11.95211299]
[1773474000175,0.64258916,87.346,87.323,11.45173665]
[1773474001276,0.64258916,87.346,87.324,0.4979758]
[1773474001475,0.64258916,87.345,87.323,11.45173665]
[1773474003505,0.64258916,87.343,87.317,11.45252356]
[1773474004182,0.64258916,87.339,87.312,11.4531794]
[1773474004679,0.64258916,87.339,87.312,11.94842608]
[1773474005384,0.64258916,87.329,87.291,0.49524668]
[1773474005560,0.64258916,87.319,87.291,0.49524668]
[1773474005978,0.64258916,87.319,87.289,28.64022402]
[1773474006563,0.64258916,87.319,87.29,11.45606598]
[1773474007259,0.64258916,87.319,87.291,0.49393101]
[1773474009388,0.64258916,87.319,87.293,0.49263944]
[1773474010970,0.64258916,87.319,87.292,11.45580351]
[1773474013886,0.64258916,87.319,87.292,11.94534744]
[1773474015288,0.64258916,87.319,87.294,11.45554104]
[1773474015472,0.64258916,87.319,87.294,11.94440095]
[1773474015668,0.64258916,87.319,87.295,0.48819082]
[1773474015863,0.64258916,87.319,87.294,11.45554104]
[1773474019091,0.64258916,87.319,87.295,0.48622498]
[1773474019903,0.64258916,87.326,87.301,0.48558579]
[1773474021483,0.64258916,87.326,87.3,3.7183923]
[1773474021484,7.3,87.328,87.311,0.48432216]
[1773474023390,7.3,87.328,87.313,0.4830967]
[1773474025100,7.3,87.328,87.315,0.48190006]
[1773474025800,0.66580174,87.332,87.315,0.48190006]
[1773474031703,0.66580174,87.332,87.316,11.45265472]
[1773474032074,7.3,87.343,87.317,0.47791466]
[1773474032280,7.3,87.343,87.316,11.45265472]
[1773474032281,0.66580174,87.342,87.321,0.47791466]
[1773474034491,0.66580174,87.342,87.322,11.45186779]
[1773474034694,0.66580174,87.342,87.322,11.92869811]
[1773474035006,0.66580174,87.342,87.323,0.47629675]
[1773474035878,0.66580174,87.342,87.324,11.45160551]
[1773474046400,0.66580174,87.342,87.324,0.47078939]
[1773474047100,0.66580174,87.342,87.317,0.46987031]
[1773474047811,0.66580174,87.342,87.318,11.4523924]
[1773474048003,0.66580174,87.342,87.319,0.46941068]
[1773474049113,0.66580174,87.342,87.321,0.46895593]
[1773474052410,0.66580174,87.342,87.323,0.46721388]
[1773474053499,7.3,87.343,87.323,0.46721388]
[1773474053806,7.3,87.343,87.32,3.71935049]
[1773474053807,7.3,87.343,87.325,0.46636999]
[1773474054310,0.66611441,87.342,87.325,0.46636999]
[1773474055421,7.3,87.343,87.327,0.465951]
[1773474055618,0.66611441,87.347,87.327,0.465951]
[1773474062824,0.66611441,87.347,87.328,11.91387999]
[1773474064602,0.66611441,87.347,87.329,0.46242784]
[1773474065924,0.66611441,87.347,87.32,3.71935049]
[1773474065925,0.66611441,87.347,87.33,11.91252132]
[1773474070633,0.66611441,87.347,87.331,0.45994417]
[1773474071036,0.66611441,87.347,87.322,0.45994417]
[1773474071951,0.66611441,87.347,87.324,0.4596065]
[1773474074826,0.66611441,87.347,87.325,11.45147437]
[1773474075031,0.66611441,87.347,87.326,0.45845503]
[1773474076958,0.66611441,87.346,87.321,11.90951518]
[1773474077428,0.66611441,87.346,87.322,0.45751624]
[1773474078226,0.66611441,87.346,87.321,11.45199894]
[1773474078627,0.1,87.35,87.302,7.3]
[1773474078628,0.66907124,87.344,87.302,7.3]
[1773474078842,0.66907124,87.344,87.303,11.4543601]
[1773474079239,0.66907124,87.344,87.31,3.71935049]
[1773474079638,0.66907124,87.319,87.281,11.45724728]
[1773474080429,0.66907124,87.319,87.281,40.10016132]
[1773474081153,0.66907124,87.317,87.281,40.10016132]
[1773474081331,0.66907124,87.317,87.29,3.71935049]
[1773474082553,0.66907124,87.317,87.291,11.45593474]
[1773474083567,0.66907124,87.317,87.281,28.64291404]
[1773474083568,0.66907124,87.316,87.282,11.45711601]
[1773474090258,0.66907124,87.316,87.29,3.71935049]
[1773474091358,12.11871,87.339,87.3,3.71935049]
[1773474091549,2.0,107.0,87.282,11.45711601]
[1773474091550,0.66907124,87.338,87.31,3.71935049]
[1773474092458,0.66907124,87.338,87.311,11.45331057]
[1773474092856,0.66907124,87.336,87.311,11.45331057]
[1773474094264,0.66907124,87.336,87.302,11.4544913]
[1773474094464,0.66907124,87.329,87.302,11.4544913]
[1773474095965,11.45108098,87.328,87.302,11.4544913]
[1773474096143,0.66907124,87.327,87.3,3.71941669]
[1773474096347,0.66907124,87.327,87.3,15.17414557]
[1773474097666,0.66907124,87.325,87.292,11.45580351]
[1773474097969,0.66907124,87.309,87.27,3.71941669]
[1773474098364,0.66907124,87.309,87.28,3.71941669]
[1773474099556,0.66907124,87.309,87.281,11.45724728]
[1773474103551,0.66907124,87.307,87.281,11.45724728]
[1773474111586,0.66907124,87.307,87.278,28.64405631]
[1773474111587,0.66907124,87.305,87.249,14.49860047]
[1773474111768,0.60580692,87.259,87.231,11.72788954]
[1773474111968,0.48986254,87.259,87.231,0.26407508]
[1773474113583,0.48986254,87.259,87.241,0.38025085]
[1773474113884,7.3,87.267,87.251,0.38047501]
[1773474116687,12.10012255,87.275,87.261,0.38113064]
[1773474119874,12.70592947,87.275,87.253,0.38176216]
[1773474120384,0.60580692,87.274,87.253,0.38176216]
[1773474125363,0.60580692,87.272,87.253,0.38176216]
[1773474127981,0.60580692,87.272,70.5,0.213]
[1773474127982,0.60580692,87.287,87.261,0.19226755]
[1773474128181,11.45659097,87.286,87.271,0.19226755]
[1773474128690,12.06239789,87.286,87.271,0.19226755]
[1773474128885,0.60580692,87.285,87.27,3.71941669]
[1773474129082,0.60580692,87.285,87.267,0.19260268]
[1773474130590,0.60580692,87.285,87.26,3.71941669]
[1773474130591,0.60580692,87.285,87.27,3.71941669]
[1773474130776,10.28590496,87.289,87.271,0.19325664]
[1773474130978,11.45632847,87.288,87.271,0.19325664]
[1773474131289,12.06213539,87.288,87.271,0.19325664]
[1773474131488,9.68009804,87.289,87.271,0.19325664]
[1773474132093,10.28590496,87.289,87.271,0.19325664]
[1773474132496,11.45632847,87.288,87.271,0.19325664]
[1773474138280,11.45632847,87.288,87.24,3.71941669]
[1773474138281,0.60580692,87.3,87.282,0.19512926]
[1773474138481,11.45488493,87.299,87.282,0.19512926]
[1773474139084,12.06069185,87.299,87.282,0.19512926]
[1773474139286,0.60580692,87.299,87.282,0.19512926]
[1773474139492,12.06069185,87.299,87.282,0.19512926]
[1773474139996,0.60580692,87.298,87.282,0.19512926]
[1773474140201,0.60580692,87.298,87.277,0.19556795]
[1773474140401,0.60580692,87.298,87.28,3.71941669]
[1773474142600,0.64868516,87.296,87.28,3.71941669]
[1773474145400,0.64868516,87.294,87.261,0.19684592]
[1773474147178,0.64868516,87.294,87.27,3.71941669]
[1773474148402,0.64868516,87.292,87.27,3.71941669]
[1773474150005,0.64868516,87.29,87.27,3.71941669]
[1773474150206,0.64868516,87.289,87.27,3.71941669]
[1773474150691,0.64868516,87.289,87.27,3.91744615]
[1773474153400,0.64868516,87.289,87.271,0.19839383]
[1773474154509,0.64868516,87.289,87.27,3.71941669]
[1773474154804,0.64868516,87.289,87.27,3.91835757]
[1773474155601,0.64868516,87.289,87.27,3.92140102]
[1773474157813,0.64868516,87.289,87.271,0.19946428]
[1773474157985,7.3,87.29,87.272,0.19946428]
[1773474159187,7.3,87.29,87.274,0.19962978]
[1773474160010,7.931871,87.29,87.274,0.19962978]
[1773474162015,0.631871,87.306,87.281,0.2001307]
[1773474166518,3.72246014,87.32,87.249,57.30699328]
[1773474166519,0.631871,87.309,87.291,0.20078295]
[1773474168010,0.631871,87.309,87.29,3.72246014]
[1773474170111,0.6477923,87.317,87.3,3.72246014]
[1773474170306,0.6477923,87.317,87.301,0.20154421]
[1773474170833,0.6477923,87.317,87.3,3.72246014]
[1773474171012,11.45214833,87.32,87.301,0.20169516]
[1773474171587,12.11550338,87.32,87.301,0.20169516]
[1773474172812,28.62487193,87.337,87.303,0.20213989]
[1773474172813,0.66335505,87.325,87.303,0.20213989]
[1773474175912,0.66335505,87.325,87.3,3.72246014]
[1773474175913,0.66335505,87.325,87.305,0.20256274]
[1773474176116,0.66335505,87.325,87.31,3.72246014]
[1773474179316,0.66335505,87.325,87.31,3.92541689]
[1773474182126,0.66335505,87.323,87.301,0.20334509]
[1773474183121,0.66335505,87.323,87.31,3.72246014]
[1773474184425,0.66335505,87.323,87.304,0.20347358]
[1773474188207,7.3,87.338,87.277,57.28886189]
[1773474188208,0.66335505,87.363,87.311,0.20408989]
[1773474188507,34.39,87.415,87.277,57.28886189]
[1773474188508,0.66335505,87.344,87.312,0.20408989]
[1773474188720,0.66335505,87.339,87.292,0.66070589]
[1773474188923,3.72246014,87.33,87.292,0.66070589]
[1773474189107,0.66335505,87.329,87.292,0.66070589]
[1773474190010,0.66335505,87.329,87.3,3.72246014]
[1773474190325,0.66335505,87.327,87.3,3.72246014]
[1773474192413,0.66335505,87.325,87.3,3.72246014]
[1773474193035,0.66335505,87.325,87.296,0.66070589]
[1773474194232,0.66335505,87.323,87.3,3.72246014]
[1773474196733,11.45186779,87.322,87.3,3.72246014]
[1773474196919,0.66335505,87.321,87.3,3.72246014]
[1773474199526,11.45213009,87.32,87.3,3.72246014]
[1773474199726,0.66335505,87.319,87.3,3.72246014]
[1773474202637,0.65457143,87.317,87.295,11.4554018]
[1773474203250,0.65457143,87.317,87.296,0.65793085]
[1773474203427,0.65457143,87.317,87.3,3.72246014]
[1773474203621,0.65457143,87.317,87.3,4.38039099]
[1773474205037,0.65457143,87.317,87.301,0.65793085]
[1773474209746,0.34980258,87.315,87.301,0.65793085]
[1773474210542,0.34980258,87.315,87.296,0.65793085]
[1773474211324,0.3510979,87.313,87.296,0.65793085]
[1773474213435,0.3510979,87.313,87.292,0.65793085]
[1773474213636,0.35364409,87.311,87.268,0.65793085]
[1773474213823,0.35489529,87.309,87.271,0.65793085]
[1773474214649,0.35489529,87.309,87.281,0.65793085]
[1773474214846,11.45226124,87.319,87.301,0.65793085]
[1773474215229,7.3,87.32,87.301,0.65793085]
[1773474216244,11.45177106,87.323,87.301,0.65793085]
[1773474218344,11.45094985,87.329,87.301,0.65793085]
[1773474218948,40.07832449,87.329,87.301,0.65793085]
[1773474219151,0.360939,87.328,87.301,0.65793085]
[1773474222043,0.36440117,87.326,87.301,0.65793085]
[1773474224952,0.3677454,87.324,87.301,0.65793085]
[1773474227955,0.37202784,87.322,87.301,0.65793085]
[1773474229660,0.37306789,87.32,87.291,12.08986433]
[1773474230048,0.37306789,87.32,87.292,0.63392959]
[1773474232245,0.37710998,87.318,87.292,0.63392959]
[1773474234362,11.45252356,87.317,87.294,0.69468929]
[1773474237162,11.83377466,87.322,87.294,0.69468929]
[1773474237364,0.38190687,87.321,87.294,0.69468929]
[1773474239966,11.45213009,87.32,87.294,0.69468929]
[1773474240368,11.83678488,87.32,87.294,0.69468929]
[1773474243866,0.38817364,87.324,87.295,11.45540981]
[1773474244071,0.38817364,87.324,87.296,0.69468929]
[1773474244368,0.38817364,87.328,87.301,0.69468929]
[1773474245854,3.71962656,87.34,87.268,61.6]
[1773474245855,28.62292622,87.343,87.311,0.69468929]
[1773474246059,0.38987301,87.342,87.311,0.69468929]
[1773474247675,0.39070809,87.341,87.311,0.69468929]
[1773474249175,0.39234958,87.339,87.311,0.69468929]
[1773474251975,11.84451163,87.338,87.313,0.69468929]
[1773474253569,29.01844716,87.343,87.313,0.69468929]
[1773474253874,0.39629114,87.342,87.313,0.69468929]
[1773474255451,0.39629114,87.342,87.315,0.69468929]
[1773474255658,11.44950767,87.34,87.315,0.69468929]